[Event "14th Poti Open-A 2019"]
[Site "Poti"]
[Date "2019.07.14"]
[Round "2.14"]
[White "Dilanyan, Grigor"]
[Black "Ohanyan, Emin"]
[Result "1/2-1/2"]
[ECO "A05"]
[WhiteElo "2274"]
[BlackElo "1950"]
[Annotator "NA"]
[PlyCount "190"]
[EventDate "2019.07.13"]
[EventType "swiss"]
[EventCountry "GEO"]
[SourceTitle "playchess.com"]
[Source "ChessBase"]
[SourceQuality "1"]
[TimeControl "40/5400+30:1800+30"]

1. Nf3 {[%emt 0:00:00]} Nf6 {[%emt 0:00:00]} 2. g3 {[%emt 0:00:00]} g6 {[%emt 0:00:00]} 3. b3 {[%emt 0:00:09]} Bg7 {[%emt 0:00:00]} 4. Bb2 {[%emt 0:00:04]} O-O {[%emt 0:00:02]} 5. Bg2 {[%emt 0:00:05]} d5 {[%emt 0:00:05]} 6. c4 {[%emt 0:01:23]} c6 {[%emt 0:00:05]} 7. O-O {[%emt 0:00:30]} Bg4 {[%emt 0:02:40]} 8. h3 {[%emt 0:02:59]} Bxf3 {[%emt 0:00:08] A11: English Opening: 1...c6} 9. Bxf3 {[%emt 0:00:06]} Nbd7 {[%emt 0:00:58]} (9... e6 10. Qc2 Nbd7 11. d3 Re8 12. e3 a5 13. Nc3 Nb6 14. Rac1 a4 15. Nxa4 Nxa4 16. bxa4 dxc4 17. Qxc4 {1-0 (60) Jones,G (2654)-Martirosyan,H (2516) Minsk 2017}) 10. cxd5 {[%emt 0:06:27]} cxd5 {[%emt 0:00:16]} 11. d4 {[%emt 0:00:55]} Ne4 {[%emt 0:04:58]} 12. Nc3 {[%emt 0:04:16]} Nxc3 {[%emt 0:10:23]} 13. Bxc3 {[%emt 0:01:12]} e6 {[%emt 0:04:46] [#]} 14. Rc1 $146 {[%emt 0:03:57]} ({Predecessor:} 14. Qd3 f5 15. Rfc1 Rf7 16. Bd2 {1-0 (61) Skoberne,J (2535)-Martinovic,S (2504) Sibenik 2012}) 14... f5 {[%emt 0:03:11]} 15. e3 {[%emt 0:02:23]} Nf6 {[%emt 0:05:04]} 16. Qd3 {[%emt 0:08:47]} Ne4 {[%emt 0:11:58]} 17. Bb4 {[%emt 0:10:50]} Re8 {[%emt 0:03:32]} 18. Rc2 {[%emt 0:02:20]} Qd7 {[%emt 0:03:57]} 19. Rfc1 {[%emt 0:00:12]} Rac8 {[%emt 0:01:48]} 20. a4 $11 {[%emt 0:01:47]} Bf8 {[%emt 0:09:15]} 21. Bxf8 {[%emt 0:02:53]} Rxf8 {[%emt 0:01:09]} 22. h4 {[%emt 0:03:43]} Nd6 {[%emt 0:01:14]} 23. Qd2 {[%emt 0:02:40]} Rxc2 {[%emt 0:01:22]} 24. Rxc2 {[%emt 0:00:06]} Rc8 {[%emt 0:00:25]} 25. Rxc8+ {[%emt 0:00:52]} Qxc8 {[%emt 0:06:38]} 26. Qa5 {[%emt 0:01:41]} Qb8 {[%emt 0:01:43]} 27. Qc5 {[%emt 0:01:05]} Kf7 {[%emt 0:01:13]} 28. b4 {[%emt 0:05:18]} Ke7 {[%emt 0:01:10]} 29. a5 {[%emt 0:09:17]} b6 {[%emt 0:00:58]} 30. axb6 {[%emt 0:03:38]} axb6 {[%emt 0:00:04]} 31. Qc1 {[%emt 0:01:24]} Qc8 {[%emt 0:04:51]} 32. Qa1 {[%emt 0:01:14]} Qb7 {[%emt 0:03:06]} 33. Be2 {[%emt 0:02:42]} b5 {[%emt 0:00:32]} 34. f3 {[%emt 0:03:21]} Nc4 {[%emt 0:01:42]} 35. Kf2 {[%emt 0:00:02]} h6 {[%emt 0:03:04]} 36. Bd3 {[%emt 0:00:54]} Kf7 {[%emt 0:01:15]} 37. Qa2 {[%emt 0:07:12]} Qe7 {[%emt 0:03:16]} 38. Bxc4 {[%emt 0:01:01]} dxc4 {[%emt 0:03:31]} 39. Qa5 {[%emt 0:00:52]} Qd7 {[%emt 0:01:31]} 40. Qb6 {[%emt 0:00:00]} g5 {[%emt 0:00:00]} 41. hxg5 {[%emt 0:07:04]} hxg5 {[%emt 0:02:29]} 42. e4 {[%emt 0:00:32]} fxe4 {[%emt 0:04:08]} 43. fxe4 {[%emt 0:00:02]} Qe8 {[%emt 0:12:42]} 44. Qb7+ {[%emt 0:02:15]} Kg6 {[%emt 0:00:56]} 45. Ke3 {[%emt 0:00:47]} g4 {[%emt 0:06:09]} 46. d5 {[%emt 0:06:46]} Qf7 {[%emt 0:08:43]} 47. Qxb5 {[%emt 0:01:01]} Qf3+ {[%emt 0:00:31]} 48. Kd4 {[%emt 0:00:05]} Qd3+ {[%emt 0:00:33]} 49. Ke5 {[%emt 0:05:27]} Qxg3+ {[%emt 0:00:02]} 50. Kxe6 {[%emt 0:00:06]} Qf3 {[%emt 0:03:50]} 51. Qe8+ {[%emt 0:02:52]} Kg7 {[%emt 0:01:07]} 52. Qe7+ {[%emt 0:03:37]} Kg6 {[%emt 0:00:07]} 53. e5 {[%emt 0:06:57]} c3 {[%emt 0:00:33]} 54. Qf6+ {[%emt 0:03:20]} Kh7 {[%emt 0:00:22]} 55. Qh4+ {[%emt 0:02:28]} Kg6 {[%emt 0:00:28]} 56. Qf6+ {[%emt 0:00:06]} Kh7 {[%emt 0:00:03]} 57. Qg5 {[%emt 0:01:56]} c2 {[%emt 0:01:44]} 58. d6 {[%emt 0:00:16]} Qd1 {[%emt 0:01:30]} 59. Kf6 {[%emt 0:01:35]} Qf1+ {[%emt 0:00:36]} 60. Ke7 {[%emt 0:00:40]} c1=Q {[%emt 0:00:11]} 61. Qh5+ {[%emt 0:02:43]} Qh6 {[%emt 0:01:04]} 62. Qxh6+ {[%emt 0:00:11]} Kxh6 {[%emt 0:00:03]} 63. d7 {[%emt 0:00:04]} g3 {[%emt 0:00:53]} 64. d8=Q {[%emt 0:00:16]} g2 {[%emt 0:00:04]} 65. Qh8+ {[%emt 0:01:01]} Kg6 {[%emt 0:00:15]} 66. Qg8+ {[%emt 0:00:26]} Kf5 {[%emt 0:00:18]} 67. Qe6+ {[%emt 0:01:27]} Ke4 {[%emt 0:00:21]} 68. Qc6+ {[%emt 0:01:04]} Kxe5 {[%emt 0:00:04]} 69. Qe6+ {[%emt 0:00:07]} Kd4 {[%emt 0:00:20]} 70. Qd6+ {[%emt 0:00:36]} Kc4 {[%emt 0:01:53]} 71. Qc5+ {[%emt 0:00:06]} Kb3 {[%emt 0:00:08]} 72. Qe3+ {[%emt 0:00:16]} Kxb4 {[%emt 0:00:49]} 73. Qd4+ {[%emt 0:00:14]} Kb3 {[%emt 0:00:04]} 74. Qe3+ {[%emt 0:00:33]} Kc2 {[%emt 0:00:06]} 75. Qe4+ {[%emt 0:00:26]} Kd2 {[%emt 0:00:24]} 76. Qd5+ {[%emt 0:00:06]} Ke3 {[%emt 0:01:13]} 77. Qc5+ {[%emt 0:00:38]} Kf3 {[%emt 0:00:27]} 78. Qf5+ {[%emt 0:00:59]} Kg3 {[%emt 0:00:07]} 79. Qg5+ {[%emt 0:01:15]} Kh2 {[%emt 0:00:38]} 80. Qe5+ {[%emt 0:00:14]} Kh1 {[%emt 0:00:15]} 81. Qh8+ {[%emt 0:00:24]} Kg1 {[%emt 0:00:08]} 82. Qd4+ {[%emt 0:00:04]} Qf2 {[%emt 0:00:07]} 83. Qd1+ {[%emt 0:00:03]} Kh2 {[%emt 0:00:03]} 84. Qh5+ {[%emt 0:00:46]} Kg3 {[%emt 0:00:03]} 85. Qg6+ {[%emt 0:00:16]} Kf3 {[%emt 0:00:54]} 86. Qf5+ {[%emt 0:00:43]} Ke2 {[%emt 0:00:07]} 87. Qb5+ {[%emt 0:00:04]} Kd2 {[%emt 0:03:03]} 88. Qb2+ {[%emt 0:00:28]} Ke1 {[%emt 0:00:05]} 89. Qb1+ {[%emt 0:00:07]} Ke2 {[%emt 0:00:03]} 90. Qb5+ {[%emt 0:00:06]} Kf3 {[%emt 0:00:04]} 91. Qf5+ {[%emt 0:00:05]} Kg3 {[%emt 0:00:02]} 92. Qg6+ {[%emt 0:00:14]} Kh3 {[%emt 0:00:22]} 93. Qe6+ {[%emt 0:00:06]} Kh4 {[%emt 0:02:02]} 94. Qh6+ {[%emt 0:00:16]} Kg3 {[%emt 0:00:05]} 95. Qg6+ {[%emt 0:00:22]} Kf3 {[%emt 0:00:26]} 1/2-1/2

[Event "14th Poti Open-A 2019"]
[Site "Poti"]
[Date "2019.07.14"]
[Round "2.15"]
[White "Gabuzyan, Hovhannes"]
[Black "Suleymanli, Suleyman"]
[Result "1-0"]
[ECO "D12"]
[WhiteElo "2622"]
[BlackElo "2007"]
[Annotator "ChessBase"]
[PlyCount "129"]
[EventDate "2019.07.13"]
[EventType "swiss"]
[EventCountry "GEO"]
[SourceTitle "playchess.com"]
[Source "ChessBase"]
[SourceQuality "1"]
[TimeControl "40/5400+30:1800+30"]

1. Nf3 {[%emt 0:01:37]} d5 {[%emt 0:00:00]} 2. c4 {[%emt 0:00:04]} c6 {[%emt 0:00:59]} 3. d4 {[%emt 0:00:05]} Nf6 {[%emt 0:00:40]} 4. e3 {[%emt 0:00:25]} Bf5 {[%emt 0:01:37]} 5. Nc3 {[%emt 0:00:13]} e6 {[%emt 0:00:31]} 6. Nh4 {[%emt 0:00:17]} Bg6 {[%emt 0:00:47]} 7. Nxg6 {[%emt 0:00:46]} hxg6 {[%emt 0:00:24]} 8. g3 {[%emt 0:00:04]} Nbd7 {[%emt 0:01:25]} 9. Qe2 {[%emt 0:00:21]} Be7 {[%emt 0:01:36]} 10. Bg2 {[%emt 0:00:22]} Nb6 {[%emt 0:04:48]} 11. b3 {[%emt 0:03:18]} a5 {[%emt 0:04:08]} 12. O-O {[%emt 0:01:29]} O-O {[%emt 0:03:04]} 13. Rb1 {[%emt 0:00:51]} Qd7 {[%emt 0:07:35]} 14. c5 {[%emt 0:02:32]} Nc8 {[%emt 0:00:16]} 15. a3 {[%emt 0:00:04]} b5 {[%emt 0:03:56]} 16. b4 {[%emt 0:00:17]} axb4 {[%emt 0:01:21]} 17. axb4 {[%emt 0:00:02]} Bd8 {[%emt 0:01:33]} 18. Bb2 {[%emt 0:03:23]} Ne7 {[%emt 0:01:38]} 19. Rbd1 {[%emt 0:00:50]} Bc7 {[%emt 0:02:55]} 20. f3 {[%emt 0:00:06]} Nh7 {[%emt 0:03:08]} 21. e4 {[%emt 0:00:45]} f5 {[%emt 0:01:32]} 22. Rfe1 {[%emt 0:03:10]} Rfe8 {[%emt 0:03:53]} 23. Qd3 {[%emt 0:09:58]} Nf6 {[%emt 0:04:53]} 24. e5 {[%emt 0:01:22]} Nh7 {[%emt 0:00:35]} 25. Ra1 {[%emt 0:00:15]} Reb8 {[%emt 0:02:59]} 26. Bf1 {[%emt 0:02:09]} Ng5 {[%emt 0:05:08]} 27. Ne2 {[%emt 0:00:00]} Qc8 {[%emt 0:02:04]} 28. Nf4 {[%emt 0:02:14]} Kf7 {[%emt 0:02:24]} 29. Kg2 {[%emt 0:01:20]} Rxa1 {[%emt 0:03:53]} 30. Rxa1 {[%emt 0:00:23]} Ra8 {[%emt 0:00:50]} 31. Qb1 {[%emt 0:00:26]} Ra6 {[%emt 0:02:54]} 32. Bd3 {[%emt 0:00:40]} Qa8 {[%emt 0:02:02]} 33. Rxa6 {[%emt 0:00:45]} Qxa6 {[%emt 0:00:07]} 34. Bc1 {[%emt 0:00:14]} Nh7 {[%emt 0:01:39]} 35. g4 {[%emt 0:01:04]} Qc8 {[%emt 0:02:42]} 36. Qa2 {[%emt 0:01:31]} Nf8 {[%emt 0:02:14]} 37. h4 {[%emt 0:01:24]} Qb7 {[%emt 0:02:42]} 38. Nh3 {[%emt 0:00:31]} Nh7 {[%emt 0:01:00]} 39. Bg5 {[%emt 0:00:04]} Bd8 {[%emt 0:01:53]} 40. h5 {[%emt 0:00:00]} gxh5 {[%emt 0:00:00]} 41. gxf5 {[%emt 0:00:51]} exf5 {[%emt 0:01:30]} 42. Bxe7 {[%emt 0:00:15]} Bxe7 {[%emt 0:00:20]} 43. Bxf5 {[%emt 0:00:15]} Nf8 {[%emt 0:01:19]} 44. Bb1 {[%emt 0:04:18]} Qd7 {[%emt 0:13:56]} 45. Qd2 {[%emt 0:06:26]} Qe6 {[%emt 0:04:12]} 46. Ng5+ {[%emt 0:05:58]} Bxg5 {[%emt 0:00:13]} 47. Qxg5 {[%emt 0:00:02]} g6 {[%emt 0:00:36]} 48. f4 {[%emt 0:00:09]} Nh7 {[%emt 0:01:34]} 49. Qh4 {[%emt 0:00:03]} Nf8 {[%emt 0:00:46]} 50. Kf3 {[%emt 0:00:37]} Kg7 {[%emt 0:07:15]} 51. Ke3 {[%emt 0:06:05]} Qf7 {[%emt 0:08:31]} 52. Qg3 {[%emt 0:01:43]} Qa7 {[%emt 0:01:50]} 53. Qg1 {[%emt 0:17:39]} Qa3+ {[%emt 0:03:05]} 54. Bd3 {[%emt 0:00:15]} Qxb4 {[%emt 0:00:32]} 55. f5 {[%emt 0:00:25]} Qa5 {[%emt 0:02:09]} 56. e6 {[%emt 0:07:59]} Qd8 {[%emt 0:04:02]} 57. Qg3 {[%emt 0:00:09]} Qe7 {[%emt 0:00:32]} 58. Ke2 {[%emt 0:03:21]} b4 {[%emt 0:05:14]} 59. Qe5+ {[%emt 0:01:49]} Kg8 {[%emt 0:00:02]} 60. Qd6 {[%emt 0:00:19]} Qg5 {[%emt 0:00:52]} 61. e7 {[%emt 0:01:08]} Qg2+ {[%emt 0:00:04]} 62. Kd1 {[%emt 0:00:13]} Qg1+ {[%emt 0:00:09]} 63. Kc2 {[%emt 0:00:26]} b3+ {[%emt 0:00:12]} 64. Kxb3 {[%emt 0:00:15]} Qd1+ {[%emt 0:00:04]} 65. Bc2 {[%emt 0:00:06]} 1-0

[Event "14th Poti Open-A 2019"]
[Site "Poti"]
[Date "2019.07.14"]
[Round "2.16"]
[White "Buniatyan, David"]
[Black "Hayrapetyan, Hovik"]
[Result "0-1"]
[ECO "B43"]
[WhiteElo "2014"]
[BlackElo "2465"]
[Annotator "ChessBase"]
[PlyCount "126"]
[EventDate "2019.07.13"]
[EventType "swiss"]
[EventCountry "GEO"]
[SourceTitle "playchess.com"]
[Source "ChessBase"]
[SourceQuality "1"]
[TimeControl "40/5400+30:1800+30"]

1. e4 {[%emt 0:00:00]} c5 {[%emt 0:00:00]} 2. Nf3 {[%emt 0:00:00]} e6 {[%emt 0:00:00]} 3. d4 {[%emt 0:00:00]} cxd4 {[%emt 0:00:00]} 4. Nxd4 {[%emt 0:00:00]} a6 {[%emt 0:00:00]} 5. Nc3 {[%emt 0:00:02]} Qc7 {[%emt 0:00:00]} 6. Qf3 {[%emt 0:00:09]} Nc6 {[%emt 0:00:49]} 7. Nxc6 {[%emt 0:00:26]} bxc6 {[%emt 0:00:04]} 8. Qg3 {[%emt 0:00:12]} Qxg3 {[%emt 0:00:18]} 9. hxg3 {[%emt 0:00:04]} d5 {[%emt 0:00:22]} 10. Na4 {[%emt 0:00:08]} Bb7 {[%emt 0:00:19]} 11. Bf4 {[%emt 0:00:11]} Nf6 {[%emt 0:00:20]} 12. exd5 {[%emt 0:00:13]} Nxd5 {[%emt 0:01:51]} 13. Be5 {[%emt 0:00:04]} c5 {[%emt 0:14:59]} 14. b3 {[%emt 0:00:07]} f6 {[%emt 0:03:22]} 15. Bb2 {[%emt 0:00:05]} Nb4 {[%emt 0:38:14]} 16. O-O-O {[%emt 0:00:06]} Nxa2+ {[%emt 0:00:01]} 17. Kb1 {[%emt 0:00:01]} Nb4 {[%emt 0:00:05]} 18. Bc4 {[%emt 0:00:07]} Be4 {[%emt 0:06:14]} 19. Rd2 {[%emt 0:00:06]} Rd8 {[%emt 0:03:34]} 20. Re2 {[%emt 0:00:05]} Bd5 21. Bxd5 {[%emt 0:06:36]} Rxd5 {[%emt 0:01:48]} 22. Rxe6+ {[%emt 0:00:06]} Kf7 {[%emt 0:00:05]} 23. Re2 {[%emt 0:08:17]} Be7 {[%emt 0:06:26]} 24. Rhe1 {[%emt 0:06:48]} Rd7 {[%emt 0:03:35]} 25. Ba3 {[%emt 0:04:56]} Rhd8 {[%emt 0:02:47]} 26. Kb2 {[%emt 0:13:19]} Bf8 {[%emt 0:02:01]} 27. Bxb4 {[%emt 0:01:41]} cxb4 {[%emt 0:00:05]} 28. Nb6 {[%emt 0:00:12]} Rb7 {[%emt 0:00:39]} 29. Nc4 {[%emt 0:00:43]} Bc5 {[%emt 0:00:20]} 30. Kb1 {[%emt 0:01:14]} Rbd7 {[%emt 0:00:46]} 31. Nb2 {[%emt 0:01:26]} Bd4 {[%emt 0:00:19]} 32. Rd1 {[%emt 0:08:09]} Bc3 {[%emt 0:01:20]} 33. Rd3 {[%emt 0:00:16]} Rxd3 {[%emt 0:01:55]} 34. Nxd3 {[%emt 0:00:19]} Rd5 {[%emt 0:00:01]} 35. Re4 {[%emt 0:01:12]} Ra5 {[%emt 0:00:38]} 36. Nb2 {[%emt 0:00:29]} Rh5 {[%emt 0:04:19]} 37. Rh4 {[%emt 0:03:22]} Rxh4 {[%emt 0:01:19]} 38. gxh4 {[%emt 0:00:02]} Kg6 {[%emt 0:00:14]} 39. Nd3 {[%emt 0:09:42]} Kh5 {[%emt 0:00:51]} 40. Nc5 {[%emt 0:00:00]} a5 {[%emt 0:00:00]} 41. Nb7 {[%emt 0:00:50]} Be1 {[%emt 0:04:16]} 42. Nxa5 {[%emt 0:05:57]} Bxf2 {[%emt 0:00:21]} 43. Nc6 {[%emt 0:06:03]} Kxh4 {[%emt 0:02:27]} 44. Nxb4 {[%emt 0:00:48]} Kg3 {[%emt 0:00:29]} 45. Nd3 {[%emt 0:03:51]} Be3 {[%emt 0:01:36]} 46. c4 {[%emt 0:07:13]} Kxg2 {[%emt 0:01:07]} 47. c5 {[%emt 0:00:31]} Kf3 {[%emt 0:01:02]} 48. b4 {[%emt 0:11:17]} Ke4 {[%emt 0:00:57]} 49. Kc2 {[%emt 0:00:07]} Kd5 {[%emt 0:01:11]} 50. Kc3 {[%emt 0:00:49]} Bd4+ {[%emt 0:00:14]} 51. Kb3 {[%emt 0:00:06]} g5 {[%emt 0:01:01]} 52. Ka4 Kc4 {[%emt 0:09:33]} 53. c6 {[%emt 0:05:19]} Bb6 {[%emt 0:01:05]} 54. Nc5 {[%emt 0:09:42]} f5 {[%emt 0:05:56]} 55. Nd7 {[%emt 0:00:31]} Bc7 {[%emt 0:00:28]} 56. b5 {[%emt 0:00:30]} Kd5 {[%emt 0:06:07]} 57. Nf6+ Ke6 58. Nd7 {[%emt 0:09:49]} Kd6 {[%emt 0:00:49]} 59. Nf6 {[%emt 0:00:16]} Bb6 {[%emt 0:00:06]} 60. Nd7 {[%emt 0:08:10]} Bd8 61. Nf8 g4 {[%emt 0:00:48]} 62. Nxh7 {[%emt 0:01:34]} g3 {[%emt 0:00:00]} 63. b6 Kxc6 0-1

[Event "14th Poti Open-A 2019"]
[Site "Poti"]
[Date "2019.07.14"]
[Round "2.17"]
[White "Khachikyan, Haik"]
[Black "Manukyan, Aleks"]
[Result "0-1"]
[ECO "C00"]
[WhiteElo "1869"]
[BlackElo "2097"]
[Annotator "NA"]
[PlyCount "70"]
[EventDate "2019.07.13"]
[EventType "swiss"]
[EventCountry "GEO"]
[SourceTitle "playchess.com"]
[Source "ChessBase"]
[SourceQuality "1"]
[TimeControl "40/5400+30:1800+30"]

1. e4 {[%emt 0:00:00]} e6 {[%emt 0:00:00]} 2. b3 {[%emt 0:00:00]} c5 {[%emt 0:01:05]} 3. Bb2 {[%emt 0:00:00]} Nc6 {[%emt 0:00:16]} 4. Bb5 {[%emt 0:04:57]} Nd4 {[%emt 0:02:55]} 5. Bxd4 {[%emt 0:04:55]} cxd4 {[%emt 0:00:35]} 6. Nf3 {[%emt 0:00:31]} g6 {[%emt 0:07:35]} 7. O-O {[%emt 0:03:20]} Bg7 {[%emt 0:00:43]} 8. Re1 {[%emt 0:01:06]} Ne7 $11 {[%emt 0:01:01]} 9. Bf1 {[%emt 0:07:46]} O-O {[%emt 0:01:08]} 10. c3 {[%emt 0:00:24]} Nc6 {[%emt 0:01:31]} 11. cxd4 {[%emt 0:01:39]} Nxd4 {[%emt 0:00:52]} 12. Nc3 {[%emt 0:01:33]} d6 {[%emt 0:05:06]} 13. Rc1 {[%emt 0:02:05]} Bd7 {[%emt 0:01:00]} 14. Nxd4 {[%emt 0:05:47]} Bxd4 {[%emt 0:00:59]} 15. Ne2 {[%emt 0:02:09]} Bg7 {[%emt 0:01:18]} 16. g3 {[%emt 0:06:18]} Qa5 {[%emt 0:02:49]} 17. a4 {[%emt 0:09:25]} Rac8 {[%emt 0:02:18]} 18. Nc3 {[%emt 0:07:19]} Qb4 {[%emt 0:06:02]} 19. Qc2 {[%emt 0:10:25]} a6 {[%emt 0:03:30]} 20. Qd3 {[%emt 0:05:32]} Bd4 {[%emt 0:07:34]} 21. Ne2 {[%emt 0:05:40]} Bg7 {[%emt 0:04:03]} 22. Rxc8 {[%emt 0:01:17]} Rxc8 {[%emt 0:00:02]} 23. Rc1 {[%emt 0:03:28]} Rxc1 {[%emt 0:01:28]} 24. Nxc1 {[%emt 0:00:06]} Bh6 {[%emt 0:00:23]} 25. Ne2 {[%emt 0:03:45]} Qxd2 {[%emt 0:02:42]} 26. Qc4 {[%emt 0:00:26]} Bc6 {[%emt 0:01:20]} 27. Nd4 {[%emt 0:03:25]} Be3 {[%emt 0:03:08]} 28. Ne2 {[%emt 0:03:21]} Bc5 {[%emt 0:02:47]} 29. Qc3 {[%emt 0:03:38]} Qd1 {[%emt 0:04:35]} 30. Qf3 {[%emt 0:03:37]} Qe1 {[%emt 0:01:27]} 31. Nc3 {[%emt 0:00:58]} Bd4 {[%emt 0:02:04]} 32. Ne2 {[%emt 0:00:36]} Bxe4 {[%emt 0:01:25]} 33. Qf4 {[%emt 0:00:29]} e5 {[%emt 0:02:29]} 34. Qf6 {[%emt 0:00:11]} Bd3 {[%emt 0:00:32]} 35. Qf3 {[%emt 0:00:15]} e4 {[%emt 0:00:28]} 0-1

[Event "14th Poti Open-A 2019"]
[Site "Poti"]
[Date "2019.07.14"]
[Round "2.18"]
[White "Mesropian, Khachatur"]
[Black "Kukhaleishvili, Giorgi"]
[Result "1-0"]
[ECO "E73"]
[WhiteElo "2094"]
[BlackElo "1839"]
[Annotator "NA"]
[PlyCount "109"]
[EventDate "2019.07.13"]
[EventType "swiss"]
[EventCountry "GEO"]
[SourceTitle "playchess.com"]
[Source "ChessBase"]
[SourceQuality "1"]
[TimeControl "40/5400+30:1800+30"]

1. d4 {[%emt 0:00:00]} Nf6 {[%emt 0:00:00]} 2. c4 {[%emt 0:00:00]} g6 {[%emt 0:00:00]} 3. Nc3 {[%emt 0:00:00]} Bg7 {[%emt 0:00:00]} 4. e4 {[%emt 0:00:03]} d6 $14 {[%emt 0:00:00]} 5. Be2 {[%emt 0:00:16]} O-O {[%emt 0:00:02]} 6. Bg5 {[%emt 0:00:01]} c5 {[%emt 0:00:16]} 7. d5 {[%emt 0:00:06]} a6 {[%emt 0:00:58]} 8. a4 {[%emt 0:00:13]} Qa5 {[%emt 0:01:21]} 9. Bd2 {[%emt 0:03:16]} e6 {[%emt 0:00:35]} 10. Nf3 {[%emt 0:00:30]} exd5 {[%emt 0:00:30]} 11. exd5 {[%emt 0:00:11]} Bg4 {[%emt 0:02:53]} 12. O-O {[%emt 0:00:13]} Qc7 {[%emt 0:01:35]} 13. h3 {[%emt 0:00:14]} Bxf3 {[%emt 0:00:14]} 14. Bxf3 {[%emt 0:00:02]} Nbd7 {[%emt 0:00:22]} 15. Qc2 {[%emt 0:01:00]} Rfe8 {[%emt 0:02:57]} 16. Rae1 {[%emt 0:00:28]} Rxe1 {[%emt 0:07:08]} 17. Rxe1 {[%emt 0:00:02]} Ne5 {[%emt 0:00:42]} 18. Be2 {[%emt 0:00:14]} Re8 {[%emt 0:00:17]} 19. f4 {[%emt 0:03:26]} Ned7 {[%emt 0:00:06]} 20. Bf3 {[%emt 0:00:43]} Qd8 {[%emt 0:03:28]} 21. Qd1 {[%emt 0:01:08]} Qb6 {[%emt 0:06:17]} 22. b3 {[%emt 0:01:47]} Rxe1+ {[%emt 0:00:39]} 23. Bxe1 {[%emt 0:00:01]} h6 {[%emt 0:02:47]} 24. Qc2 {[%emt 0:04:22]} Nf8 {[%emt 0:01:07]} 25. Bd1 {[%emt 0:00:28]} Qd8 {[%emt 0:02:32]} 26. Qe2 {[%emt 0:00:12]} Qe8 {[%emt 0:01:32]} 27. Qxe8 {[%emt 0:00:18]} Nxe8 {[%emt 0:00:01]} 28. a5 {[%emt 0:00:02]} f5 {[%emt 0:03:56]} 29. g4 {[%emt 0:05:17]} Kf7 {[%emt 0:00:35]} 30. gxf5 gxf5 {[%emt 0:00:04]} 31. Bc2 {[%emt 0:03:14]} Kg6 {[%emt 0:00:56]} 32. Kg2 {[%emt 0:01:08]} Nd7 {[%emt 0:02:31]} 33. Ne2 {[%emt 0:01:10]} Bf6 {[%emt 0:00:30]} 34. b4 {[%emt 0:01:36]} Bd8 {[%emt 0:04:58]} 35. Ng3 {[%emt 0:03:31]} Ng7 {[%emt 0:00:05]} 36. b5 {[%emt 0:03:10]} h5 {[%emt 0:07:18]} 37. b6 {[%emt 0:00:56]} h4 {[%emt 0:00:49]} 38. Nf1 {[%emt 0:01:15]} Bf6 {[%emt 0:01:37]} 39. Ba4 {[%emt 0:00:34]} Nb8 {[%emt 0:00:08]} 40. Kf3 {[%emt 0:02:17]} Kh5 {[%emt 0:04:25]} 41. Ne3 {[%emt 0:30:58]} Kg6 {[%emt 0:32:43]} 42. Ng2 {[%emt 0:00:22]} Kh5 {[%emt 0:01:26]} 43. Bd1 {[%emt 0:00:38]} Nd7 {[%emt 0:02:18]} 44. Ke3+ {[%emt 0:00:35]} Kh6 {[%emt 0:00:11]} 45. Nxh4 {[%emt 0:00:54]} Bd4+ {[%emt 0:00:41]} 46. Kf3 {[%emt 0:00:25]} Nf6 {[%emt 0:00:50]} 47. Bc2 {[%emt 0:03:11]} Ne4 {[%emt 0:00:41]} 48. Nxf5+ {[%emt 0:00:35]} Nxf5 {[%emt 0:00:05]} 49. Bxe4 {[%emt 0:00:50]} Ne3 {[%emt 0:00:10]} 50. Bd3 {[%emt 0:00:33]} Nd1 {[%emt 0:00:58]} 51. Bf5 {[%emt 0:00:36]} Nb2 {[%emt 0:00:28]} 52. Bc8 {[%emt 0:00:10]} Nxc4 {[%emt 0:00:18]} 53. Bxb7 {[%emt 0:00:08]} Ne3 {[%emt 0:00:36]} 54. Bxa6 {[%emt 0:00:33]} Nxd5 {[%emt 0:00:13]} 55. b7 {[%emt 0:00:12]} 1-0

[Event "14th Poti Open-A 2019"]
[Site "Poti"]
[Date "2019.07.14"]
[Round "2.19"]
[White "Ohanyan, Andrey"]
[Black "Pluzyan, Aram"]
[Result "0-1"]
[ECO "A04"]
[WhiteElo "1849"]
[BlackElo "2087"]
[Annotator "NA"]
[PlyCount "106"]
[EventDate "2019.07.13"]
[EventType "swiss"]
[EventCountry "GEO"]
[SourceTitle "playchess.com"]
[Source "ChessBase"]
[SourceQuality "1"]
[TimeControl "40/5400+30:1800+30"]

1. Nf3 c5 2. b3 Nc6 3. Bb2 d6 4. e3 e5 5. d3 Be7 6. Nbd2 f5 7. a4 Be6 8. Nc4 Bf6 9. e4 g6 10. g3 Nh6 11. Qd2 Nf7 12. Bg2 Qc7 13. h4 d5 14. exd5 Bxd5 15. O-O O-O-O 16. Ng5 Bxg5 17. hxg5 Nd4 18. Bxd4 cxd4 19. Bxd5 Rxd5 20. f4 exf4 21. Qxf4 Qd8 22. Rfe1 Qxg5 23. Qxg5 Nxg5 24. Re7 Rd7 25. Re2 Kd8 26. a5 Re7 27. Rxe7 Kxe7 28. a6 b6 29. Re1+ Kd7 30. Kg2 Nf7 31. Na3 Rc8 32. Rh1 h5 33. Rh4 Rc5 34. Rxd4+ Kc6 35. Nc4 b5 36. b4 Rd5 37. Na5+ Kd6 38. Rxd5+ Kxd5 39. c4+ bxc4 40. dxc4+ Kd6 41. b5 Kc5 42. Nc6 Kb6 43. Ne7 Nd6 44. Nd5+ Ka5 45. c5 Nxb5 46. c6 Kxa6 47. Ne7 Kb6 48. Nxg6 Nd4 49. Kf2 Kxc6 50. Ke3 Kc5 51. Nf4 Kc4 52. Nxh5 a5 53. Nf4 Nb3 0-1